lending/lending_fUSD_20250527
["ID","MTS","AMOUNT","RATE_DAILY","PERIOD"]
[362455960,1748308240025,-15003.93005265,0.00027257,2]
[362455961,1748308240034,-171.79262219,0.00027258,2]
[362455962,1748308240044,-2768.3351285,0.00027266,2]
[362455963,1748308240055,-291.90999104,0.00027266,2]
[362455964,1748308240064,-169.04845497,0.00027267,2]
[362455965,1748308240074,-291.90999103,0.00027267,2]
[362455966,1748308240083,-354.97211022,0.00027268,2]
[362455967,1748308240093,-291.90999103,0.00027268,2]
[362455968,1748308240103,-15003.9300525,0.00027274,2]
[362455969,1748308240112,-500.0,0.00027289,2]
[362455970,1748308240122,-500.0,0.00027289,2]
[362455971,1748308240132,-500.0,0.00027289,2]
[362455972,1748308240141,-500.0,0.00027289,2]
[362455973,1748308240150,-500.0,0.00027289,2]
[362455974,1748308240161,-500.0,0.00027289,2]
[362455975,1748308240170,-500.0,0.00027289,2]
[362455976,1748308240180,-500.0,0.00027289,2]
[362455977,1748308240189,-278.75893318,0.00027289,2]
[362455978,1748308240198,-500.0,0.00027289,2]
[362455979,1748308240207,-500.0,0.00027289,2]
[362455980,1748308240217,-500.0,0.00027289,2]
[362455981,1748308240226,-159.79620457,0.00027289,2]
[362455982,1748308240236,-500.0,0.00027289,2]
[362455983,1748308240245,-500.0,0.00027289,2]
[362455984,1748308240255,-500.0,0.00027289,2]
[362455985,1748308240264,-15003.9300525,0.0002729,2]
[362455986,1748308240274,-500.0,0.00027292,2]
[362455987,1748308240284,-5595.74913946,0.00027292,2]
[362455988,1748308240293,-1282.87417059,0.00027293,2]
[362455989,1748308240305,-2768.33512846,0.000273,2]
[362455991,1748308240315,-15003.9300525,0.00027307,2]
[362455993,1748308240324,-9793.30998329,0.00027323,2]
[362455996,1748308240350,-536.63803911,0.00027323,2]
[362455999,1748308240361,-4673.9820301,0.00027323,2]
[362456000,1748308240370,-2768.33512846,0.00027334,2]
[362456002,1748308240379,-15003.9300525,0.0002734,2]
[362456004,1748308240388,-15003.9300525,0.00027356,2]
[362456006,1748308240397,-101299.811999,0.00027357,2]
[362456007,1748308240407,-20259.9623998,0.00027357,2]
[362456008,1748308240416,-336.10534499,0.00027357,2]
[362456009,1748308240425,-209.81993492,0.00027357,2]
[362456010,1748308240434,-263379.511197,0.00027357,2]
[362456011,1748308240443,-115529.352545,0.00027357,2]
[362456012,1748308240453,-60779.8871993,0.00027358,2]
[362456013,1748308240462,-33008.3864415,0.00027358,2]
[362456014,1748308240471,-5595.74913946,0.00027361,2]
[362456015,1748308240481,-169.55474893,0.00027367,3]
[362456016,1748308240489,-146951.42557259,0.00027367,3]
[362456017,1748308240512,-1000.68027014,0.00027367,3]
[362456018,1748308240522,-1504.58506319,0.00027367,3]
[362456019,1748308240549,-2571.75,0.00027367,3]
[362456028,1748308242699,-1811.41644376,0.00027367,3]
[362456029,1748308242924,-3100.79899662,0.00027367,3]
[362456030,1748308242984,-1116.8,0.00027367,3]
[362456031,1748308243098,-263.93882415,0.00027367,3]
[362456044,1748308245729,-568.23554066,0.00027289,2]
[362456045,1748308245739,-320.30662138,0.00027289,2]
[362456046,1748308245750,-3699.10167539,0.00027367,3]
[362456047,1748308245761,-1269.30800462,0.00027367,3]
[362456048,1748308245772,-960.8850015,0.00027367,3]
[362456049,1748308245784,-1055.23999938,0.00027367,3]
[362456050,1748308245796,-4756.649999,0.00027367,3]
[362456051,1748308245836,-4909.74608926,0.00027367,3]
[362456052,1748308245856,-1103.66831496,0.00027367,3]
[362456053,1748308245868,-371.67486846,0.00027367,3]
[362456054,1748308245880,-3270.654,0.00027367,3]
[362456055,1748308245893,-793.68176271,0.00027367,3]
[362456056,1748308245926,-13598.71175443,0.00027367,3]
[362456057,1748308245939,-334473.40730461,0.00027367,3]
[362456058,1748308245951,-151.0,0.00027368,7]
[362456059,1748308245960,-173.129875,0.00027368,7]
[362456060,1748308245971,-151.0,0.00027368,7]
[362456061,1748308245983,-152.951142,0.00027368,7]
[362456062,1748308245992,-151.0,0.00027368,7]
[362456063,1748308246003,-151.0,0.00027368,7]
[362456064,1748308246012,-151.0,0.00027368,7]
[362456065,1748308246022,-151.0,0.00027368,7]
[362456066,1748308246032,-9419.8050176,0.00027368,2]
[362456067,1748308246043,-153.805566,0.00027368,7]
[362456068,1748308246054,-308.33928,0.00027368,7]
[362456069,1748308246065,-308.33928,0.00027368,7]
[362456070,1748308246076,-204.733338,0.00027368,7]
[362456071,1748308246086,-151.0,0.00027368,7]
[362456072,1748308246095,-151.0,0.00027368,7]
[362456073,1748308246104,-823.0280988,0.00027368,2]
[362456074,1748308246113,-11362.8832825,0.00027368,2]
[362456075,1748308246122,-3018.5056779,0.00027368,2]
[362456076,1748308246132,-103772.9006198,0.00027368,2]
[362456077,1748308246141,-2768.33512846,0.00027368,2]
[362456078,1748308246151,-500.0,0.00027373,2]
[362456079,1748308246160,-500.0,0.00027373,2]
[362456080,1748308246170,-503.64934028,0.00027373,2]
[362456081,1748308246179,-502.16828216,0.00027373,2]
[362456082,1748308246188,-500.0,0.00027373,2]
[362456083,1748308246197,-504.80097089,0.00027373,2]
[362456084,1748308246207,-500.0,0.00027373,2]
[362456085,1748308246217,-500.0,0.00027373,2]
[362456086,1748308246226,-15003.9300525,0.00027373,2]
[362456087,1748308246235,-1183.09095464,0.00027373,2]
[362456088,1748308246245,-151.0,0.00027376,7]
[362456089,1748308246254,-151.0,0.00027376,7]
[362456090,1748308246264,-151.0,0.00027376,7]
[362456091,1748308246273,-151.0,0.00027376,7]
[362456092,1748308246282,-155.259932,0.00027376,7]
[362456093,1748308246291,-151.0,0.00027376,7]
[362456094,1748308246301,-151.0,0.00027376,7]
[362456095,1748308246312,-151.0,0.00027376,7]
[362456096,1748308246322,-151.0,0.00027376,7]
[362456097,1748308246331,-151.0,0.00027376,7]
[362456098,1748308246341,-151.0,0.00027376,7]
[362456099,1748308246350,-150.0,0.00027376,2]
[362456100,1748308246360,-516.60505392,0.00027377,2]
[362456101,1748308246369,-4000.0,0.00027377,2]
[362456102,1748308246379,-518.3077578,0.0002738,60]
[362456103,1748308246388,-215.0738,0.00027384,2]
[362456104,1748308246398,-155.54,0.00027387,2]
[362456105,1748308246407,-151.0,0.00027387,7]
[362456106,1748308246417,-152.199333,0.00027387,7]
[362456107,1748308246426,-151.0,0.00027387,7]
[362456108,1748308246436,-151.0,0.00027387,7]
[362456109,1748308246445,-151.0,0.00027387,7]
[362456110,1748308246455,-151.0,0.00027387,7]
[362456111,1748308246465,-151.0,0.00027387,7]
[362456112,1748308246475,-308.33928,0.00027387,7]
[362456113,1748308246484,-308.33928,0.00027387,7]
[362456114,1748308246494,-151.0,0.00027387,7]
[362456115,1748308246504,-151.0,0.00027387,7]
[362456116,1748308246513,-151.0,0.00027387,7]
[362456117,1748308246524,-151.0,0.00027387,7]
[362456118,1748308246534,-151.0,0.00027387,7]
[362456119,1748308246544,-497.390329,0.00027387,7]
[362456120,1748308246553,-151.0,0.00027387,7]
[362456121,1748308246565,-497.390329,0.00027387,7]
[362456122,1748308246574,-151.0,0.00027387,7]
[362456123,1748308246584,-15003.9300525,0.00027389,2]
[362456124,1748308246593,-917.433,0.00027396,16]
[362456125,1748308246603,-163.74301754,0.00027397,2]
[362456126,1748308246612,-420.97119509,0.00027397,2]
[362456127,1748308246621,-420.0,0.00027397,2]
[362456128,1748308246630,-420.0,0.00027397,2]
[362456129,1748308246639,-420.0,0.00027397,2]
[362456130,1748308246649,-420.0,0.00027397,2]
[362456131,1748308246659,-420.0,0.00027397,2]
[362456132,1748308246668,-378.60937452,0.00027397,2]
[362456133,1748308246678,-420.0,0.00027397,2]
[362456134,1748308246687,-420.0,0.00027397,2]
[362456135,1748308246696,-420.0,0.00027397,2]
[362456136,1748308246705,-420.0,0.00027397,2]
[362456137,1748308246714,-420.0,0.00027397,2]
[362456138,1748308246723,-152.925138,0.00027397,2]
[362456139,1748308246733,-420.0,0.00027397,2]
[362456140,1748308246742,-2167.37,0.00027397,2]
[362456141,1748308246752,-420.0,0.00027397,2]
[362456142,1748308246761,-420.0,0.00027397,2]
[362456143,1748308246771,-420.0,0.00027397,2]
[362456144,1748308246780,-420.0,0.00027397,2]
[362456145,1748308246790,-420.0,0.00027397,2]
[362456146,1748308246799,-420.0,0.00027397,2]
[362456147,1748308246811,-420.0,0.00027397,2]
[362456148,1748308246820,-420.0,0.00027397,2]
[362456149,1748308246829,-420.0,0.00027397,2]
[362456150,1748308246839,-420.0,0.00027397,2]
[362456151,1748308246848,-250.02871901,0.00027397,2]
[362456152,1748308246857,-420.0,0.00027397,2]
[362456153,1748308246866,-421.20135633,0.00027397,2]
[362456154,1748308246876,-434.27528465,0.00027397,2]
[362456155,1748308246886,-294.96,0.00027397,2]
[362456156,1748308246895,-420.0,0.00027397,2]
[362456157,1748308246908,-421.4470056,0.00027397,2]
[362456158,1748308246920,-420.0,0.00027397,2]
[362456159,1748308246929,-3098.44,0.00027397,2]
[362456160,1748308246940,-466.61953675,0.00027397,2]
[362456161,1748308246950,-2024.39,0.00027397,2]
[362456162,1748308246960,-159.18382265,0.00027397,2]
[362456163,1748308246969,-420.0,0.00027397,2]
[362456164,1748308246979,-420.0,0.00027397,2]
[362456165,1748308246991,-420.0,0.00027397,2]
[362456166,1748308247005,-420.0,0.00027397,2]
[362456167,1748308247015,-420.0,0.00027397,2]
[362456168,1748308247024,-420.0,0.00027397,2]
[362456169,1748308247034,-420.0,0.00027397,2]
[362456170,1748308247044,-420.0,0.00027397,2]
[362456171,1748308247053,-502.75036131,0.00027397,2]
[362456172,1748308247064,-449.18620554,0.00027397,2]
[362456173,1748308247073,-420.0,0.00027397,2]
[362456174,1748308247083,-420.0,0.00027397,2]
[362456175,1748308247092,-2277.05,0.00027397,2]
[362456176,1748308247102,-420.0,0.00027397,2]
[362456177,1748308247111,-420.0,0.00027397,2]
[362456178,1748308247121,-420.0,0.00027397,2]
[362456179,1748308247130,-427.12223803,0.00027397,2]
[362456180,1748308247140,-420.0,0.00027397,2]
[362456181,1748308247149,-420.0,0.00027397,2]
[362456182,1748308247158,-420.0,0.00027397,2]
[362456183,1748308247168,-420.0,0.00027397,2]
[362456185,1748308247178,-420.0,0.00027397,2]
[362456187,1748308247187,-420.0,0.00027397,2]
[362456188,1748308247196,-420.0,0.00027397,2]
[362456191,1748308247207,-420.0,0.00027397,2]
[362456192,1748308247216,-480.0,0.00027397,2]
[362456193,1748308247226,-420.0,0.00027397,2]
[362456194,1748308247235,-420.0,0.00027397,2]
[362456195,1748308247245,-420.0,0.00027397,2]
[362456196,1748308247255,-420.0,0.00027397,2]
[362456197,1748308247265,-2829.5,0.00027397,2]
[362456198,1748308247274,-420.0,0.00027397,2]
[362456199,1748308247284,-420.0,0.00027397,2]
[362456200,1748308247293,-2274.44,0.00027397,2]
[362456201,1748308247303,-421.03122347,0.00027397,2]
[362456202,1748308247315,-420.0,0.00027397,2]
[362456203,1748308247325,-420.0,0.00027397,2]
[362456204,1748308247334,-425.95636174,0.00027397,2]
[362456205,1748308247343,-588.0,0.00027397,2]
[362456206,1748308247354,-249.26199462,0.00027397,2]
[362456207,1748308247363,-248.91414265,0.00027397,2]
[362456208,1748308247372,-420.0,0.00027397,2]
[362456209,1748308247382,-420.0,0.00027397,2]
[362456210,1748308247391,-530.69465808,0.00027397,2]
[362456211,1748308247400,-420.0,0.00027397,2]
[362456212,1748308247410,-430.04698222,0.00027397,2]
[362456213,1748308247419,-420.0,0.00027397,2]
[362456214,1748308247428,-420.0,0.00027397,2]
[362456215,1748308247438,-420.0,0.00027397,2]
[362456216,1748308247447,-420.0,0.00027397,2]
[362456217,1748308247456,-420.0,0.00027397,2]
[362456218,1748308247465,-420.0,0.00027397,2]
[362456219,1748308247474,-420.0,0.00027397,2]
[362456220,1748308247483,-384.64456124,0.00027397,2]
[362456221,1748308247493,-425.91662842,0.00027397,2]
[362456222,1748308247503,-420.0,0.00027397,2]
[362456223,1748308247511,-420.0,0.00027397,2]
[362456224,1748308247521,-420.0,0.00027397,2]
[362456225,1748308247530,-438.98364882,0.00027397,2]
[362456226,1748308247539,-420.0,0.00027397,2]
[362456227,1748308247547,-420.0,0.00027397,2]
[362456228,1748308247558,-420.0,0.00027397,2]
[362456229,1748308247568,-420.0,0.00027397,2]
[362456230,1748308247577,-420.0,0.00027397,2]
[362456231,1748308247586,-420.0,0.00027397,2]
[362456232,1748308247595,-420.0,0.00027397,2]
[362456233,1748308247604,-420.0,0.00027397,2]
[362456234,1748308247613,-420.0,0.00027397,2]
[362456235,1748308247622,-420.0,0.00027397,2]
[362456236,1748308247631,-259.18097714,0.00027397,2]
[362456237,1748308247641,-420.0,0.00027397,2]
[362456238,1748308247650,-420.0,0.00027397,2]
[362456239,1748308247659,-420.0,0.00027397,2]
[362456240,1748308247669,-420.0,0.00027397,2]
[362456241,1748308247678,-400.0,0.00027397,2]
[362456242,1748308247688,-420.0,0.00027397,2]
[362456243,1748308247697,-420.0,0.00027397,2]
[362456244,1748308247706,-420.0,0.00027397,2]
[362456245,1748308247715,-357.59354984,0.00027397,2]
[362456246,1748308247725,-420.0,0.00027397,2]
[362456247,1748308247734,-420.0,0.00027397,2]
[362456248,1748308247744,-276.9603698,0.00027397,2]
[362456249,1748308247753,-420.0,0.00027397,2]
[362456250,1748308247762,-420.0,0.00027397,2]
[362456251,1748308247772,-420.0,0.00027397,2]
[362456252,1748308247781,-420.0,0.00027397,2]
[362456253,1748308247790,-420.0,0.00027397,2]
[362456254,1748308247801,-420.0,0.00027397,2]
[362456255,1748308247812,-420.0,0.00027397,2]
[362456256,1748308247823,-420.0,0.00027397,2]
[362456257,1748308247833,-420.0,0.00027397,2]
[362456258,1748308247842,-420.0,0.00027397,2]
[362456259,1748308247852,-420.0,0.00027397,2]
[362456260,1748308247862,-420.0,0.00027397,2]
[362456261,1748308247872,-420.0,0.00027397,2]
[362456262,1748308247881,-420.0,0.00027397,2]
[362456263,1748308247891,-3543.88,0.00027397,2]
[362456264,1748308247901,-420.0,0.00027397,2]
[362456265,1748308247912,-427.61526196,0.00027397,2]
[362456266,1748308247922,-420.0,0.00027397,2]
[362456267,1748308247931,-420.0,0.00027397,2]
[362456268,1748308247941,-420.0,0.00027397,2]
[362456269,1748308247951,-420.0,0.00027397,2]
[362456270,1748308247960,-420.0,0.00027397,2]
[362456271,1748308247970,-420.0,0.00027397,2]
[362456272,1748308247980,-420.0,0.00027397,2]
[362456273,1748308247990,-420.0,0.00027397,2]
[362456274,1748308248000,-420.0,0.00027397,2]
[362456275,1748308248009,-420.0,0.00027397,2]
[362456276,1748308248019,-420.0,0.00027397,2]
[362456277,1748308248029,-425.17418824,0.00027397,2]
[362456278,1748308248039,-425.6976159,0.00027397,2]
[362456279,1748308248048,-401.4330044,0.00027397,2]
[362456280,1748308248058,-420.0,0.00027397,2]
[362456281,1748308248067,-420.0,0.00027397,2]
[362456282,1748308248077,-424.9326303,0.00027397,2]
[362456283,1748308248087,-420.0,0.00027397,2]
[362456284,1748308248097,-420.0,0.00027397,2]
[362456285,1748308248107,-400.0,0.00027397,2]
[362456286,1748308248117,-428.23,0.00027397,2]
[362456287,1748308248127,-420.0,0.00027397,2]
[362456288,1748308248137,-420.0,0.00027397,2]
[362456289,1748308248148,-420.0,0.00027397,2]
[362456290,1748308248157,-420.0,0.00027397,2]
[362456291,1748308248166,-420.0,0.00027397,2]
[362456292,1748308248176,-420.0,0.00027397,2]
[362456293,1748308248185,-420.0,0.00027397,2]
[362456294,1748308248195,-420.0,0.00027397,2]
[362456295,1748308248205,-501.43305694,0.00027397,2]
[362456296,1748308248214,-420.0,0.00027397,2]
[362456297,1748308248224,-420.0,0.00027397,2]
[362456298,1748308248233,-420.0,0.00027397,2]
[362456299,1748308248243,-420.0,0.00027397,2]
[362456300,1748308248252,-300.0,0.00027397,2]
[362456301,1748308248262,-420.0,0.00027397,2]
[362456302,1748308248272,-420.0,0.00027397,2]
[362456303,1748308248281,-420.0,0.00027397,2]
[362456304,1748308248291,-420.0,0.00027397,2]
[362456305,1748308248300,-420.0,0.00027397,2]
[362456306,1748308248309,-420.0,0.00027397,2]
[362456307,1748308248318,-420.0,0.00027397,2]
[362456308,1748308248328,-2355.02,0.00027397,2]
[362456309,1748308248337,-420.0,0.00027397,2]
[362456310,1748308248346,-420.0,0.00027397,2]
[362456311,1748308248356,-425.16047823,0.00027397,2]
[362456312,1748308248365,-420.0,0.00027397,2]
[362456313,1748308248375,-420.0,0.00027397,2]
[362456314,1748308248385,-160.0,0.00027397,2]
[362456315,1748308248394,-420.0,0.00027397,2]
[362456316,1748308248403,-420.0,0.00027397,2]
[362456317,1748308248413,-420.0,0.00027397,2]
[362456318,1748308248422,-420.0,0.00027397,2]
[362456319,1748308248431,-3162.22,0.00027397,2]
[362456320,1748308248441,-420.0,0.00027397,2]
[362456321,1748308248451,-420.0,0.00027397,2]
[362456322,1748308248461,-420.0,0.00027397,2]
[362456323,1748308248471,-420.0,0.00027397,2]
[362456324,1748308248481,-566.70481428,0.00027397,2]
[362456325,1748308248491,-420.0,0.00027397,2]
[362456326,1748308248501,-420.0,0.00027397,2]
[362456327,1748308248510,-420.0,0.00027397,2]
[362456328,1748308248520,-420.0,0.00027397,2]
[362456329,1748308248531,-2074.12,0.00027397,2]
[362456330,1748308248541,-420.0,0.00027397,2]
[362456331,1748308248550,-426.33533029,0.00027397,2]
[362456332,1748308248764,-500.0,0.00027397,2]
[362456333,1748308248774,-420.0,0.00027397,2]
[362456334,1748308248784,-431.65081631,0.00027397,2]
[362456335,1748308248794,-420.0,0.00027397,2]
[362456336,1748308248804,-420.0,0.00027397,2]
[362456337,1748308248814,-420.0,0.00027397,2]
[362456338,1748308248824,-420.0,0.00027397,2]
[362456339,1748308248834,-420.0,0.00027397,2]
[362456340,1748308248844,-420.0,0.00027397,2]
[362456341,1748308248853,-2147.82,0.00027397,2]
[362456342,1748308248862,-420.0,0.00027397,2]
[362456343,1748308248872,-420.0,0.00027397,2]
[362456344,1748308248882,-420.0,0.00027397,2]
[362456345,1748308248892,-420.0,0.00027397,2]
[362456346,1748308248902,-420.0,0.00027397,2]
[362456347,1748308248914,-420.0,0.00027397,2]
[362456348,1748308248924,-420.0,0.00027397,2]
[362456349,1748308248934,-420.0,0.00027397,2]
[362456350,1748308248944,-364.32015104,0.00027397,2]
[362456351,1748308248954,-420.0,0.00027397,2]
[362456352,1748308248964,-420.0,0.00027397,2]
[362456353,1748308248974,-420.0,0.00027397,2]
[362456354,1748308248984,-421.7912954,0.00027397,2]
[362456355,1748308248996,-420.0,0.00027397,2]
[362456356,1748308249006,-420.0,0.00027397,2]
[362456357,1748308249016,-420.0,0.00027397,2]
[362456358,1748308249025,-420.0,0.00027397,2]
[362456359,1748308249035,-420.0,0.00027397,2]
[362456360,1748308249045,-420.0,0.00027397,2]
[362456361,1748308249055,-420.0,0.00027397,2]
[362456362,1748308249066,-420.0,0.00027397,2]
[362456363,1748308249076,-420.0,0.00027397,2]
[362456364,1748308249086,-3131.77,0.00027397,2]
[362456365,1748308249096,-1871.93,0.00027397,2]
[362456366,1748308249106,-420.0,0.00027397,2]
[362456367,1748308249115,-420.0,0.00027397,2]
[362456368,1748308249125,-420.0,0.00027397,2]
[362456369,1748308249134,-420.0,0.00027397,2]
[362456370,1748308249144,-420.0,0.00027397,2]
[362456371,1748308249153,-420.0,0.00027397,2]
[362456372,1748308249163,-420.0,0.00027397,2]
[362456373,1748308249172,-420.0,0.00027397,2]
[362456374,1748308249181,-420.0,0.00027397,2]
[362456375,1748308249192,-1209.98,0.00027397,2]
[362456376,1748308249201,-420.0,0.00027397,2]
[362456377,1748308249211,-420.0,0.00027397,2]
[362456378,1748308249220,-420.0,0.00027397,2]
[362456379,1748308249229,-420.0,0.00027397,2]
[362456380,1748308249239,-420.0,0.00027397,2]
[362456381,1748308249249,-420.0,0.00027397,2]
[362456382,1748308249258,-2088.62,0.00027397,2]
[362456383,1748308249268,-420.0,0.00027397,2]
[362456384,1748308249278,-420.0,0.00027397,2]
[362456385,1748308249288,-420.0,0.00027397,2]
[362456386,1748308249299,-420.0,0.00027397,2]
[362456387,1748308249309,-420.0,0.00027397,2]
[362456388,1748308249319,-440.15426706,0.00027397,2]
[362456389,1748308249329,-420.0,0.00027397,2]
[362456390,1748308249339,-420.0,0.00027397,2]
[362456391,1748308249349,-420.0,0.00027397,2]
[362456392,1748308249359,-420.0,0.00027397,2]
[362456393,1748308249369,-2588.5,0.00027397,2]
[362456394,1748308249378,-420.0,0.00027397,2]
[362456395,1748308249388,-420.0,0.00027397,2]
[362456396,1748308249397,-420.0,0.00027397,2]
[362456397,1748308249407,-2918.73,0.00027397,2]
[362456398,1748308249416,-420.0,0.00027397,2]
[362456399,1748308249426,-156.8185649,0.00027397,2]
[362456400,1748308249436,-420.0,0.00027397,2]
[362456401,1748308249445,-420.0,0.00027397,2]
[362456402,1748308249455,-737.33,0.00027397,2]
[362456403,1748308249465,-2634.97,0.00027397,2]
[362456404,1748308249474,-420.0,0.00027397,2]
[362456405,1748308249483,-420.0,0.00027397,2]
[362456406,1748308249493,-420.0,0.00027397,2]
[362456407,1748308249502,-494.91,0.00027397,2]
[362456408,1748308249512,-420.0,0.00027397,2]
[362456409,1748308249521,-420.0,0.00027397,2]
[362456410,1748308249531,-420.0,0.00027397,2]
[362456411,1748308249540,-420.0,0.00027397,2]
[362456412,1748308249550,-2385.82,0.00027397,2]
[362456413,1748308249560,-420.0,0.00027397,2]
[362456414,1748308249569,-420.0,0.00027397,2]
[362456415,1748308249583,-420.0,0.00027397,2]
[362456416,1748308249592,-420.0,0.00027397,2]
[362456417,1748308249602,-420.0,0.00027397,2]
[362456418,1748308249612,-435.1317485,0.00027397,2]
[362456419,1748308249621,-420.0,0.00027397,2]
[362456420,1748308249631,-420.0,0.00027397,2]
[362456421,1748308249641,-420.0,0.00027397,2]
[362456422,1748308249651,-420.0,0.00027397,2]
[362456423,1748308249660,-505.66348082,0.00027397,2]
[362456424,1748308249670,-3415.91,0.00027397,2]
[362456425,1748308249680,-420.0,0.00027397,2]
[362456426,1748308249689,-2252.89,0.00027397,2]
[362456427,1748308249699,-420.0,0.00027397,2]
[362456428,1748308249709,-420.0,0.00027397,2]
[362456429,1748308249719,-420.0,0.00027397,2]
[362456430,1748308249729,-420.0,0.00027397,2]
[362456431,1748308249739,-420.0,0.00027397,2]
[362456432,1748308249749,-420.0,0.00027397,2]
[362456433,1748308249759,-191.674448,0.00027397,2]
[362456434,1748308249769,-420.0,0.00027397,2]
[362456435,1748308249780,-420.0,0.00027397,2]
[362456436,1748308249790,-420.0,0.00027397,2]
[362456437,1748308249799,-250.0,0.00027397,2]
[362456438,1748308249811,-2302.32,0.00027397,2]
[362456439,1748308249823,-672.34,0.00027397,2]
[362456440,1748308249832,-420.0,0.00027397,2]
[362456441,1748308249842,-420.0,0.00027397,2]
[362456442,1748308249852,-486.47204092,0.00027397,2]
[362456443,1748308249863,-420.0,0.00027397,2]
[362456444,1748308249873,-420.0,0.00027397,2]
[362456445,1748308249884,-420.0,0.00027397,2]
[362456446,1748308249894,-420.0,0.00027397,2]
[362456447,1748308249904,-498.40917838,0.00027397,2]
[362456448,1748308249920,-420.0,0.00027397,2]
[362456449,1748308249929,-420.0,0.00027397,2]
[362456450,1748308249939,-420.0,0.00027397,2]
[362456451,1748308249949,-428.9069132,0.00027397,2]
[362456452,1748308249959,-420.0,0.00027397,2]
[362456453,1748308249969,-420.0,0.00027397,2]
[362456454,1748308249978,-420.0,0.00027397,2]
[362456455,1748308249989,-420.0,0.00027397,2]
[362456456,1748308249998,-420.0,0.00027397,2]
[362456457,1748308250008,-420.0,0.00027397,2]
[362456458,1748308250018,-420.0,0.00027397,2]
[362456459,1748308250028,-420.0,0.00027397,2]
[362456460,1748308250037,-420.0,0.00027397,2]
[362456461,1748308250047,-2909.71,0.00027397,2]
[362456462,1748308250057,-420.0,0.00027397,2]
[362456463,1748308250068,-420.0,0.00027397,2]
[362456464,1748308250078,-3856.81,0.00027397,2]
[362456465,1748308250087,-420.0,0.00027397,2]
[362456466,1748308250097,-492.97551987,0.00027397,2]
[362456467,1748308250107,-420.0,0.00027397,2]
[362456468,1748308250116,-420.0,0.00027397,2]
[362456469,1748308250126,-420.0,0.00027397,2]
[362456470,1748308250136,-420.0,0.00027397,2]
[362456471,1748308250146,-420.0,0.00027397,2]
[362456472,1748308250156,-420.0,0.00027397,2]
[362456473,1748308250165,-420.0,0.00027397,2]
[362456474,1748308250175,-420.0,0.00027397,2]
[362456475,1748308250184,-420.0,0.00027397,2]
[362456476,1748308250194,-420.0,0.00027397,2]
[362456477,1748308250203,-420.0,0.00027397,2]
[362456478,1748308250212,-420.0,0.00027397,2]
[362456479,1748308250222,-420.0,0.00027397,2]
[362456480,1748308250231,-420.0,0.00027397,2]
[362456481,1748308250241,-420.0,0.00027397,2]
[362456482,1748308250251,-420.0,0.00027397,2]
[362456483,1748308250260,-420.0,0.00027397,2]
[362456484,1748308250270,-420.0,0.00027397,2]
[362456485,1748308250279,-420.0,0.00027397,2]
[362456486,1748308250289,-420.0,0.00027397,2]
[362456487,1748308250304,-420.0,0.00027397,2]
[362456488,1748308250314,-420.0,0.00027397,2]
[362456489,1748308250325,-420.0,0.00027397,2]
[362456490,1748308250335,-1710.98,0.00027397,2]
[362456491,1748308250344,-420.0,0.00027397,2]
[362456492,1748308250354,-420.0,0.00027397,2]